Cogmind - Beta 9.4 @@@ ROGUE MODE // 2020.02.07 @ 13:40:30 Player: YppY Result: Destroyed by P-80 Master with Gamma Rifle Performance ------------- Evolutions (7) 3500 Regions Visited (17) 3400 Robots Destroyed (160) 800 Value Destroyed (6908) 6908 Prototype IDs (28) 560 Alien Tech Used (0) 0 Bonus (4396) 4396 TOTAL SCORE: 19564 Bonus ------- High Alert Combat Kills 1954 Follower Combat Kills 958 Entered Garrisons 400 Used RIF Installer 1000 Aligned with FarCom 300 Friendly Fire -216 Cogmind --------- Core Integrity 0/1300 Matter 300/300 Energy 75/100 System Corruption 12% Temperature Cool (0) Movement Core (50) Location -3/Testing Parts ------- > --- POWER (3) -------- (None) > --- PROPULSION (4) --- Improved Gyrokinetic Inverter > --- UTILITY (10) ----- Relay Coupler [Sentry] (1) > --- WEAPON (4) ------- (None) > --- INVENTORY (4) ---- Improved Antigrav System Xenon Bombardment Thruster Heavy Phase Cannon Heavy Phase Cannon Peak State ------------ > --- POWER ------------ Micro Fission Core Micro Fission Core > --- PROPULSION ------- Improved Antigrav System Improved Gyrokinetic Inverter Improved Gyrokinetic Inverter Improved Gyrokinetic Inverter > --- UTILITY ---------- Advanced Heat Sink Advanced Heat Sink Superbattery Improved Medium Armor Plating Improved Force Field Relay Coupler [Brawler] Relay Coupler [Duelist] Relay Coupler [Sentry] Relay Coupler [Sentry] > --- WEAPON ----------- Tesla Rifle Tesla Rifle Variable Charge Gun Improved Remote Datajack > --- INVENTORY -------- Gyrokinetic Inverter Improved Particle Charger Relay Coupler [Swarmer] Relay Coupler [Brawler] [Rating: 110] Favorites ----------- Power Light Nuclear Core Engine Ion Engine Power Core Light Nuclear Core Propulsion Aluminum Leg Treads Light Treads Leg Aluminum Leg Hover Unit Gravmag System Utility High-capacity Storage Unit Device Improved Shield Generator Storage High-capacity Storage Unit Processor Targeting Computer Hackware Relay Coupler [Sentry] Protection Improved Propulsion Shielding Weapon High-powered Shotgun Energy Gun Tesla Rifle Energy Cannon Disruptor Cannon Ballistic Gun High-powered Shotgun Ballistic Cannon Improved Light Cannon Launcher Rocket Launcher Special Weapon Remote Datajack Piercing Weapon Heavy Pick Build | -11 -10 -10 -9 -9 -9 -8 -8 -8 -8 -7 -7 -7 -7 -5 -4 -3 -3 ------- Run | Scr Mat Min Mat Min Exi Min Mat Gar Mat Fac Sto Gar Rec Fac Fac Res Tes Slots Evolved 14 | . . . 2 . . . 2 . . 2 . . . 4 2 2 . Power 2 | . . . . . . . . . . . . . . 1 . 1 . Propulsion 2 | . . . 1 . . . . . . . . . . . 1 . . Utility 8 | . . . . . . . 1 . . 2 . . . 3 1 1 . Weapon 2 | . . . 1 . . . 1 . . . . . . . . . . Parts Attached 162 | 6 12 2 15 1 4 . 3 22 7 16 5 17 . 32 15 2 3 Power 19 | 1 3 1 1 . . . . 1 3 2 1 1 . 3 2 . . Engine 8 | 1 3 1 1 . . . . . . . 1 1 . . . . . Core 11 | . . . . . . . . 1 3 2 . . . 3 2 . . Reactor . | . . . . . . . . . . . . . . . . . . Propulsion 52 | 2 4 . 8 . . . . 12 1 5 . 4 . 10 6 . . Treads 7 | . . . . . . . . 5 1 1 . . . . . . . Leg 23 | 2 . . 8 . . . . 5 . . . 3 . 5 . . . Wheel . | . . . . . . . . . . . . . . . . . . Hover 22 | . 4 . . . . . . 2 . 4 . 1 . 5 6 . . Flight . | . . . . . . . . . . . . . . . . . . Utility 49 | 1 3 . 2 . 3 . 1 4 1 5 1 9 . 10 7 . 2 Device 13 | . 1 . . . . . . . . 3 . 1 . 4 3 . 1 Storage 5 | 1 . . . . 2 . . . . 1 . . . . 1 . . Processor 4 | . 2 . . . . . . . . 1 1 . . . . . . Hackware 15 | . . . . . . . . . . . . 8 . 3 3 . 1 Protection 12 | . . . 2 . 1 . 1 4 1 . . . . 3 . . . Artifact . | . . . . . . . . . . . . . . . . . . Weapon 42 | 2 2 1 4 1 1 . 2 5 2 4 3 3 . 9 . 2 1 Energy Gun 4 | . . . . . . . . . . . . . . 3 . 1 . Energy Cannon 2 | . . . . . . . . . . . . . . 2 . . . Ballistic Gun 10 | 2 . . 3 . . . . 3 . . . . . 2 . . . Ballistic Cannon 6 | . . 1 . . 1 . . . . 3 . 1 . . . . . Launcher 13 | . 2 . 1 1 . . 1 1 2 1 2 2 . . . . . Special Weapon 6 | . . . . . . . 1 1 . . 1 . . 2 . 1 . Impact Weapon . | . . . . . . . . . . . . . . . . . . Slashing Weapon . | . . . . . . . . . . . . . . . . . . Piercing Weapon 1 | . . . . . . . . . . . . . . . . . 1 Special Melee Weapon . | . . . . . . . . . . . . . . . . . . Unidentified Prototypes 6 | . . . . . . . . . . 2 1 1 . . 1 1 . Parts Lost 43 | . . . 6 . . . . . 1 1 . . . 14 . 11 10 Power 5 | . . . 1 . . . . . . . . . . 2 . . 2 Propulsion 7 | . . . 3 . . . . . . . . . . 2 . . 2 Utility 18 | . . . . . . . . . 1 1 . . . 6 . 5 5 Weapon 13 | . . . 2 . . . . . . . . . . 4 . 6 1 Highest Loss Streak 11 | . . . 5 . . . . . 1 1 . . . 5 . 11 9 Average Slot Usage (%) 90 | . 90 100 83 95 76 77 72 90 98 96 100 99 100 88 98 71 41 Engine 4 | . 14 14 7 11 11 11 9 2 . . 3 7 7 5 1 . . Core 4 | . . . . . . . . 6 9 7 4 . . 1 8 9 7 Treads 7 | . . . . . . . . 11 27 18 . . . . . . . Leg 12 | . 8 . 21 33 33 33 27 15 . . . 2 23 14 . . . Hover 5 | . 13 28 5 . . . . . . 3 23 20 . 2 20 19 17 Device 4 | . 9 14 5 . . . . . . 15 19 6 7 8 21 10 1 Storage 7 | . 2 . . . 5 11 9 9 9 14 7 7 7 5 5 4 3 Processor 2 | . 14 14 11 11 2 . . . . . 10 2 . . . . . Hackware 5 | . . . . . . . . . . . . 20 23 19 12 15 10 Protection 9 | . . . 5 11 8 11 9 15 16 4 . . . 6 5 2 . Ballistic Gun 11 | . 14 13 16 22 4 . . 17 27 19 . . . 3 . . . Ballistic Cannon 5 | . . . 5 . 8 11 9 3 . 3 15 15 15 6 . . . Launcher 6 | . 13 14 5 6 2 . 9 8 9 7 7 7 7 1 . . . Special Weapon 1 | . . . . . . . . . . . 6 7 7 5 5 1 . Naked Turns . | . . . . . . . . . . . . . . . . . . Heaviest Build 116 | 12 14 11 17 21 104 104 116 116 56 64 37 36 33 47 63 55 18 Greatest Support 69 | 20 20 18 36 30 30 30 30 60 60 60 37 37 30 48 69 68 68 Greatest Overweight (x) 5 | . . . 1 . 3 3 3 5 . 3 . 3 1 4 . . . Average Overweight (x) . | . . . . . 1 3 3 1 . . . . 1 . . . . Largest Inventory Capacity 12 | 6 6 4 4 4 12 12 12 12 12 12 4 4 4 4 4 4 4 Average Capacity 8 | 4 4 4 4 4 7 12 12 12 12 11 4 4 4 4 4 4 4 Most Carried 12 | 4 4 4 4 4 10 9 10 12 12 12 4 4 4 4 4 4 4 Average Carried 7 | 1 2 3 3 3 5 9 7 11 11 10 3 3 4 2 2 3 3 Final Capacity 12 | 6 4 4 4 4 12 12 12 12 12 4 4 4 4 4 4 4 4 Final Carried 12 | 1 3 4 3 3 9 9 9 12 11 4 4 4 4 1 3 3 4 Class Distribution -------------------- 28% | Scavenger-Skirmisher 17% | Scavenger-Mutant 14% | Bothacker-Mutant 11% | Mutant 8% | Scavenger-Tank 8% | Skirmisher 5% | Scavenger-Gunner Dominant Class ---------------- Mutant | -10/Materials Scavenger-Mutant | -10/Mines Scavenger-Mutant | -9/Materials Scavenger-Gunner | -9/Mines Scavenger-Tank | -9/Exiles Scavenger-Skirmisher | -8/Mines Scavenger-Skirmisher | -8/Materials Scavenger-Skirmisher | -8/Garrison Skirmisher | -8/Materials Tank | -7/Factory Mutant | -7/Storage Bothacker-Mutant | -7/Garrison Bothacker-Mutant | -7/Recycling Scavenger-Mutant | -5/Factory Scavenger-Tank | -4/Factory Bothacker-Mutant | -3/Research Mutant | -3/Testing Resources | -11 -10 -10 -9 -9 -9 -8 -8 -8 -8 -7 -7 -7 -7 -5 -4 -3 -3 ----------- Run | Scr Mat Min Mat Min Exi Min Mat Gar Mat Fac Sto Gar Rec Fac Fac Res Tes Matter Collected 5032 | 222 192 140 440 . 206 . 110 779 892 261 164 599 12 683 262 70 . Remotely . | . . . . . . . . . . . . . . . . . . Salvage Created 4411 | . 122 115 672 . . 7 355 577 770 193 98 355 2 711 259 70 105 Parts 283 | . 21 10 44 . . 5 17 45 37 9 2 16 2 42 16 7 10 Haulers Intercepted 3 | . 2 . . . . . . . 1 . . . . . . . . Recyclers Shooed 4 | . . . 2 . . . . . 1 . 1 . . . . . . Parts Field Recycled . | . . . . . . . . . . . . . . . . . . Retrieved Matter . | . . . . . . . . . . . . . . . . . . Parts Self-Destructed . | . . . . . . . . . . . . . . . . . . Prevented . | . . . . . . . . . . . . . . . . . . Kills | -11 -10 -10 -9 -9 -9 -8 -8 -8 -8 -7 -7 -7 -7 -5 -4 -3 -3 ------- Run | Scr Mat Min Mat Min Exi Min Mat Gar Mat Fac Sto Gar Rec Fac Fac Res Tes Combat Hostiles Destroyed 128 | . 5 6 15 . . 6 9 28 22 7 1 11 1 10 3 1 3 Melee 3 | . . . . . . . . . . . . . . . . . 3 Guns 45 | . 1 . 6 . . . . 8 16 5 . . . 5 3 1 . Cannons 41 | . . . 4 . . 6 6 9 . . 1 9 1 5 . . . AOE 39 | . 4 6 5 . . . 3 11 6 2 . 2 . . . . . Classes Destroyed 18 | . 5 2 2 . . . 2 3 2 . . . 1 1 . . . Worker 4 | . . . . . . . . . 1 . . . . 3 . . . Builder 8 | . 1 . 4 . . . 1 . 1 . . . . 1 . . . Tunneler 2 | . . . . . . . . . 2 . . . . . . . . Hauler 3 | . 2 . . . . . . . 1 . . . . . . . . Recycler 5 | . . . 2 . . . 1 . . . 1 . . 1 . . . Mechanic 1 | . . 1 . . . . . . . . . . . . . . . Operator 3 | . 2 . 1 . . . . . . . . . . . . . . Drone 1 | . . . . . . . . . . . . . 1 . . . . Watcher 5 | . 2 . . . . . 1 . . . . . . 1 1 . . Swarmer 36 | . 5 1 3 . . 6 . 9 3 2 . 3 . 1 . . 3 Grunt 52 | . . 5 9 . . . 4 4 12 4 . 8 . 6 . . . Brawler 4 | . . . . . . . 1 1 2 . . . . . . . . Duelist 4 | . . . . . . . . 4 . . . . . . . . . Protector 1 | . . . . . . . . 1 . . . . . . . . . Sentry 21 | . . . 3 . . . 3 8 3 1 1 . . 1 1 . . Demolisher 1 | . . . . . . . . 1 . . . . . . . . . Hunter 3 | . . . . . . . 1 . 2 . . . . . . . . Programmer 5 | . . . . . . . . . . . . . . 2 2 1 . Thug 1 | . . . 1 . . . . . . . . . . . . . . Best Kill Streak 10 | . 5 3 8 . . 3 9 9 5 4 1 4 1 10 1 1 3 Combat Bots Only 9 | . 5 2 6 . . 3 6 9 4 4 1 4 1 2 1 1 3 Max Kills in Single Turn 4 | . 2 2 4 . . 1 3 3 4 1 1 2 1 2 1 1 1 Gunslinging 1 | . . . . . . . . . 1 . . . . . . . . Exploded 3 | . 2 2 2 . . . 1 3 3 1 . 2 . . . . . Melee 1 | . . . . . . . . . . . . . . . . . 1 Uniques/NPCs Destroyed . | . . . . . . . . . . . . . . . . . . Combat | -11 -10 -10 -9 -9 -9 -8 -8 -8 -8 -7 -7 -7 -7 -5 -4 -3 -3 -------- Run | Scr Mat Min Mat Min Exi Min Mat Gar Mat Fac Sto Gar Rec Fac Fac Res Tes Damage Taken 7929 | . 105 86 494 . . 105 111 692 1027 235 . 401 6 1779 303 1141 1444 Core 2067 | . 12 45 87 . . 7 14 89 132 26 . 51 . 270 30 282 1022 Absorbed by Shields 548 | . . . . . . . . 6 . 90 . 131 2 83 128 108 . Core Remaining (%) 81 | 100 . 77 . . . 76 . . 57 . . . 89 73 97 . . Volleys Fired 361 | . 15 8 35 . . . 10 47 54 21 15 58 1 61 26 10 . Largest 4 | . 2 2 3 . . . 1 4 4 4 2 3 2 3 3 2 . Hottest 290 | . 50 50 88 . . . 33 108 111 108 78 111 78 205 225 290 . Shots Fired 837 | . 23 14 79 . . 14 37 139 159 53 25 88 2 138 52 14 . Gun 439 | . 11 7 51 . . . . 58 149 46 . . . 61 48 8 . Cannon 254 | . . . 15 . . 14 27 53 . . 21 65 2 57 . . . Launcher 92 | . 12 7 13 . . . 10 27 10 7 1 4 . 1 . . . Special 52 | . . . . . . . . 1 . . 3 19 . 19 4 6 . Kinetic 632 | . 11 7 66 . . 14 27 111 149 46 21 65 2 113 . . . Thermal 29 | . . . . . . . . . . . . . . 3 22 4 . Explosive 92 | . 12 7 13 . . . 10 27 10 7 1 4 . 1 . . . Electromagnetic 32 | . . . . . . . . . . . . . . 2 26 4 . Robot Hit Streak 14 | . 2 4 14 . . 3 9 11 10 6 6 10 . 7 6 6 . Robot Miss Streak 7 | . 3 1 4 . . 1 2 4 7 4 3 3 1 5 4 2 . Penetration Max 1 | . . . . . . . . . . . . . . 1 . . . Secondary Targets 4 | . . . . . . . . 1 3 . . . . . . . . Max Gunslinging Chain 1 | . . . . . . . . 1 1 . . . . . . . . Autonomous 95 | . . . . . . 14 27 54 . . . . . . . . . Shots Hit Robots 515 | . 11 9 49 . . 8 23 78 114 32 14 53 . 81 30 9 4 Core Hits 296 | . 18 12 34 . . 6 20 51 63 19 2 21 1 31 9 2 7 Critical Hits 5 | . . . 1 . . . 1 1 1 . . 1 . . . . . Critical Kills 1 | . . . . . . . 1 . . . . . . . . . . Critical Parts Destroyed 4 | . . . 1 . . . . 1 1 . . 1 . . . . . Melee Attacks 5 | . . . . . . . . . . . . . . . . . 5 Impact . | . . . . . . . . . . . . . . . . . . Slashing . | . . . . . . . . . . . . . . . . . . Piercing 5 | . . . . . . . . . . . . . . . . . 5 Sneak Attacks . | . . . . . . . . . . . . . . . . . . Combat Hostiles . | . . . . . . . . . . . . . . . . . . Follow-up Attacks . | . . . . . . . . . . . . . . . . . . Damage Inflicted 16451 | . 638 717 1331 . . 752 1723 3803 2637 714 229 962 18 2121 560 91 155 Guns 5152 | . 40 70 563 . . . . 448 1763 433 . . . 1188 560 87 . Cannons 6234 | . . . 163 . . 752 1155 2281 . . 229 780 18 856 . . . Explosions 4906 | . 598 647 605 . . . 568 1074 874 281 . 182 . 77 . . . Melee 134 | . . . . . . . . . . . . . . . . . 134 Ramming 25 | . . . . . . . . . . . . . . . . 4 21 Kinetic 10654 | . 40 70 726 . . 752 1155 2729 1763 433 229 780 18 1959 . . . Thermal 412 | . . . . . . . . . . . . . . 47 308 57 . Explosive 4906 | . 598 647 605 . . . 568 1074 874 281 . 182 . 77 . . . Electromagnetic 320 | . . . . . . . . . . . . . . 38 252 30 . Impact . | . . . . . . . . . . . . . . . . . . Slashing . | . . . . . . . . . . . . . . . . . . Piercing 134 | . . . . . . . . . . . . . . . . . 134 Highest Corruption 13 | . . . . . . . . . 5 . . . . 13 1 . 11 Average Corruption 6 | . . . . . . . . . 5 . . . . 8 1 . 5 Corruption Purged . | . . . . . . . . . . . . . . . . . . Effects 36 | . . . . . . . . . 6 . . . . 29 . . 1 Message Errors 6 | . . . . . . . . . . . . . . 6 . . . Matter Fused 4 | . . . . . . . . . . . . . . 4 . . . Heat Flow Errors 5 | . . . . . . . . . 1 . . . . 4 . . . Energy Discharges 1 | . . . . . . . . . 1 . . . . . . . . Parts Rejected 1 | . . . . . . . . . . . . . . . . . 1 Data Loss (minor) 3 | . . . . . . . . . . . . . . 3 . . . Data Loss (major) 1 | . . . . . . . . . 1 . . . . . . . . Alerts 1 | . . . . . . . . . . . . . . 1 . . . Misdirections 3 | . . . . . . . . . . . . . . 3 . . . Targeting Errors 10 | . . . . . . . . . 2 . . . . 8 . . . Weapon Failures 1 | . . . . . . . . . 1 . . . . . . . . Overload Shots 5 | . . . . . . . . . . . . . . . 3 2 . Effects 1 | . . . . . . . . . . . . . . . 1 . . Heat Surge 1 | . . . . . . . . . . . . . . . 1 . . Overflow Damage 922 | . 37 8 14 . . 155 155 465 15 10 18 6 . 39 . . . Projectiles 808 | . . . . . . 155 155 438 . . 18 3 . 39 . . . Explosions 114 | . 37 8 14 . . . . 27 15 10 . 3 . . . . . Melee . | . . . . . . . . . . . . . . . . . . Knockbacks 37 | . . . . . . 1 3 7 . . 2 9 . 15 . . . Impact . | . . . . . . . . . . . . . . . . . . Kinetic 34 | . . . . . . 1 3 7 . . 2 8 . 13 . . . Secondary 3 | . . . . . . . . . . . . 1 . 2 . . . Self-Inflicted Damage 274 | . 70 10 54 . . . . 86 43 . . . . . . 2 9 Shots 13 | . 3 1 3 . . . . 4 2 . . . . . . . . Rammed 7 | . . . . . . . . . . . . . . . . 1 6 Targets Rammed 7 | . . . . . . . . . . . . . . . . 1 6 Kicked . | . . . . . . . . . . . . . . . . . . Crushed . | . . . . . . . . . . . . . . . . . . Highest Temperature 479 | . . 24 129 . . . 15 93 164 92 28 50 . 243 479 327 305 Average Temperature 68 | . . 15 45 . . . 8 19 29 21 12 13 . 61 131 105 166 Received Heat Transfer 1361 | . . 42 162 . . . 45 138 333 78 . 140 . 375 9 30 9 Effects 7 | . . . . . . . . . . . . . . . 2 4 1 Shutdowns 3 | . . . . . . . . . . . . . . . 2 1 . Energy Bleed 1 | . . . . . . . . . . . . . . . . . 1 Interference 3 | . . . . . . . . . . . . . . . . 3 . Siege Activations . | . . . . . . . . . . . . . . . . . . Robots Corrupted . | . . . . . . . . . . . . . . . . . . Combat Hostiles . | . . . . . . . . . . . . . . . . . . Parts Fried 5 | . . . . . . . . . . . . . . 1 4 . . Impact Corruptions . | . . . . . . . . . . . . . . . . . . Robots Melted . | . . . . . . . . . . . . . . . . . . Combat Hostiles . | . . . . . . . . . . . . . . . . . . Parts Melted 9 | . . . . . . . . . . . 2 2 . 1 4 . . Heat Transferred 557 | . . . . . . . . . . . . . . 74 433 50 . Parts Sabotaged . | . . . . . . . . . . . . . . . . . . Parts Stolen . | . . . . . . . . . . . . . . . . . . Parts Stripped . | . . . . . . . . . . . . . . . . . . Power Chain Reactions . | . . . . . . . . . . . . . . . . . . Missiles Intercepted . | . . . . . . . . . . . . . . . . . . Alert | -11 -10 -10 -9 -9 -9 -8 -8 -8 -8 -7 -7 -7 -7 -5 -4 -3 -3 ------- Run | Scr Mat Min Mat Min Exi Min Mat Gar Mat Fac Sto Gar Rec Fac Fac Res Tes Peak Influence 1977 | . 383 487 641 171 . 145 424 1977 1468 1016 602 946 577 1561 661 386 180 Average Influence 887 | . 125 347 504 171 . 82 237 1222 1131 810 535 774 516 1278 598 332 170 Maximum Alert Level 5 | . 1 2 2 . . . 2 5 4 3 2 3 2 4 2 1 . Low Security (%) 10 | 100 63 2 3 100 . 100 33 . . . . . . . . . 100 Level 1 8 | . 36 55 13 . . . 41 6 . . . 2 . . . 100 . Level 2 23 | . . 41 82 . . . 24 14 . 26 100 23 100 . 100 . . Level 3 23 | . . . . . . . . 20 50 73 . 74 . 3 . . . Level 4 25 | . . . . . . . . 32 49 . . . . 96 . . . Level 5 8 | . . . . . . . . 25 . . . . . . . . . High Security . | . . . . . . . . . . . . . . . . . . Max Security . | . . . . . . . . . . . . . . . . . . Squads Dispatched 33 | . . 1 2 . . . 3 . 5 4 2 . . 10 4 2 . Investigation 7 | . . . . . . . 1 . 3 . 1 . . 2 . . . Extermination 2 | . . . . . . . . . . . . . . 2 . . . Reinforcement 9 | . . . 2 . . . 1 . 1 2 . . . 1 1 1 . Assault 3 | . . 1 . . . . . . 1 . . . . 1 . . . Garrison 12 | . . . . . . . 1 . . 2 1 . . 4 3 1 . Intercept . | . . . . . . . . . . . . . . . . . . Construction Impeded 4 | . . . . . . . . . 1 . . . . 1 1 1 . Haulers Reinforced . | . . . . . . . . . . . . . . . . . . Stealth | -11 -10 -10 -9 -9 -9 -8 -8 -8 -8 -7 -7 -7 -7 -5 -4 -3 -3 --------- Run | Scr Mat Min Mat Min Exi Min Mat Gar Mat Fac Sto Gar Rec Fac Fac Res Tes Distress Signals 15 | . . . 1 . . . . . 4 . 2 . . 3 5 . . Communications Jammed . | . . . . . . . . . . . . . . . . . . Distress Signals . | . . . . . . . . . . . . . . . . . . Times Spotted 249 | . 11 10 20 . . 7 9 23 36 10 3 24 7 44 18 15 12 Peak Tracking Total 9 | . 6 3 6 . . 4 6 5 5 2 2 3 4 7 7 9 6 Tactical Retreats 13 | . . . . . . . 1 . . . . . . 5 . 4 3 Traps | -11 -10 -10 -9 -9 -9 -8 -8 -8 -8 -7 -7 -7 -7 -5 -4 -3 -3 ------- Run | Scr Mat Min Mat Min Exi Min Mat Gar Mat Fac Sto Gar Rec Fac Fac Res Tes Traps Triggered 17 | . . . 1 . . . . 5 2 . . 8 . 1 . . . Indirectly . | . . . . . . . . . . . . . . . . . . Trap Hack Attempts . | . . . . . . . . . . . . . . . . . . Triggered . | . . . . . . . . . . . . . . . . . . Disarmed . | . . . . . . . . . . . . . . . . . . Reprogrammed . | . . . . . . . . . . . . . . . . . . Reused 3 | . . 3 . . . . . . . . . . . . . . . Traps Extracted . | . . . . . . . . . . . . . . . . . . Installed 4 | . . 4 . . . . . . . . . . . . . . . Triggered 3 | . . 3 . . . . . . . . . . . . . . . Machines | -11 -10 -10 -9 -9 -9 -8 -8 -8 -8 -7 -7 -7 -7 -5 -4 -3 -3 ---------- Run | Scr Mat Min Mat Min Exi Min Mat Gar Mat Fac Sto Gar Rec Fac Fac Res Tes Machines Disabled 27 | . 4 1 2 . . . 1 8 2 1 2 4 . 2 . . . Max in Single Turn 1 | . 1 . 1 . . . 1 1 1 1 1 1 . 1 . . . Garrison Access 1 | . . . . . . . . . . 1 . . . . . . . Garrison Relay 8 | . . . . . . . . 4 . . . 4 . . . . . Machines Sabotaged . | . . . . . . . . . . . . . . . . . . Garrisons Compromised . | . . . . . . . . . . . . . . . . . . Overloaded Fab Kills . | . . . . . . . . . . . . . . . . . . Fab Network Shutdowns . | . . . . . . . . . . . . . . . . . . Hacking | -11 -10 -10 -9 -9 -9 -8 -8 -8 -8 -7 -7 -7 -7 -5 -4 -3 -3 --------- Run | Scr Mat Min Mat Min Exi Min Mat Gar Mat Fac Sto Gar Rec Fac Fac Res Tes Machines Accessed 29 | . 5 . 3 . 1 . 1 . 3 3 5 . 2 3 1 1 1 Terminals 17 | . 3 . 2 . . . . . 2 2 4 . 1 2 . . 1 Fabricators . | . . . . . . . . . . . . . . . . . . Repair Stations 2 | . 1 . 1 . . . . . . . . . . . . . . Recycling Units 3 | . 1 . . . . . . . 1 . . . 1 . . . . Scanalyzers . | . . . . . . . . . . . . . . . . . . Garrison Access 6 | . . . . . . . 1 . . 1 1 . . 1 1 1 . Total Hacks 84 | . 18 . 8 . 1 . 3 . 9 13 15 . 3 8 2 3 1 Successful 55 | . 13 . 6 . 1 . 1 . 5 9 11 . 2 4 1 1 1 Failed 29 | . 5 . 2 . . . 2 . 4 4 4 . 1 4 1 2 . Catastrophic 4 | . . . . . . . . . 2 . . . 1 . 1 . . Database Lockouts . | . . . . . . . . . . . . . . . . . . Manual 44 | . 6 . 5 . 1 . . . 4 8 8 . 2 4 2 3 1 Terminals 46 | . 9 . 6 . . . . . 6 7 10 . 2 5 . . 1 Fabricators . | . . . . . . . . . . . . . . . . . . Repair Stations 8 | . 6 . 2 . . . . . . . . . . . . . . Recycling Units 7 | . 3 . . . . . . . 3 . . . 1 . . . . Scanalyzers . | . . . . . . . . . . . . . . . . . . Garrison Access 22 | . . . . . . . 3 . . 6 5 . . 3 2 3 . Terminal Hacks 10 | . 3 . 1 . 1 . . . . . 3 . . 2 . . . Open Door 3 | . . . . . . . . . . . 3 . . . . . . Branch Access Points 1 | . 1 . . . . . . . . . . . . . . . . Unreport Threat 2 | . . . . . . . . . . . . . . 2 . . . Locate Traps 1 | . 1 . . . . . . . . . . . . . . . . Zone Layout 2 | . 1 . 1 . . . . . . . . . . . . . . EX-Prototype ID Bank 1 | . . . . . 1 . . . . . . . . . . . . Fabricator Hacks . | . . . . . . . . . . . . . . . . . . Repair Station Hacks 5 | . 3 . 2 . . . . . . . . . . . . . . Scan Component 3 | . 2 . 1 . . . . . . . . . . . . . . Repair 2 | . 1 . 1 . . . . . . . . . . . . . . Recycling Unit Hacks 6 | . 3 . . . . . . . 2 . . . 1 . . . . Process 2 | . 1 . . . . . . . 1 . . . . . . . . Report Inventory 3 | . 1 . . . . . . . 1 . . . 1 . . . . Retrieve Matter 1 | . 1 . . . . . . . . . . . . . . . . Scanalyzer . | . . . . . . . . . . . . . . . . . . Garrison Access Hacks 6 | . . . . . . . 1 . . 3 2 . . . . . . Unlock Access 2 | . . . . . . . 1 . . . 1 . . . . . . Seal Access 1 | . . . . . . . . . . 1 . . . . . . . Coupler Status 3 | . . . . . . . . . . 2 1 . . . . . . Unauthorized Hacks 71 | . 10 . 8 . . . . . 7 14 14 . 3 6 3 4 2 Terminals 22 | . 4 . 3 . . . . . 3 4 5 . 1 1 . . 1 Track 6 | . 1 . 1 . . . . . . 1 2 . . . . . 1 Assimilate 1 | . . . . . . . . . . 1 . . . . . . . Botnet 12 | . 3 . 2 . . . . . 2 1 2 . 1 1 . . . Disrupt 1 | . . . . . . . . . 1 . . . . . . . . Operators 2 | . . . . . . . . . . 1 1 . . . . . . Fabricators . | . . . . . . . . . . . . . . . . . . Repair Stations . | . . . . . . . . . . . . . . . . . . Recycling Units . | . . . . . . . . . . . . . . . . . . Scanalyzers . | . . . . . . . . . . . . . . . . . . Garrison Access 6 | . . . . . . . . . . 2 1 . . 1 1 1 . Restock 3 | . . . . . . . . . . 1 . . . . 1 1 . Reprogram 3 | . . . . . . . . . . 1 1 . . 1 . . . Data Cores Recovered 2 | . 2 . . . . . . . . . . . . . . . . Used 1 | . 1 . . . . . . . . . . . . . . . . Hacking Detections 23 | . 3 . 2 . . . 1 . 3 3 4 . 2 3 1 1 . Full Trace Events 7 | . . . . . . . 1 . 2 . 1 . 1 2 . . . Feedback Events 1 | . . . . . . . . . . . . . . 1 . . . Hackware Fried 1 | . . . . . . . . . . . . . . 1 . . . Feedback Blocked . | . . . . . . . . . . . . . . . . . . Robot Schematics Acquired . | . . . . . . . . . . . . . . . . . . Robots Built . | . . . . . . . . . . . . . . . . . . Matter . | . . . . . . . . . . . . . . . . . . Time . | . . . . . . . . . . . . . . . . . . Total Robot Build Rating . | . . . . . . . . . . . . . . . . . . Part Schematics Acquired . | . . . . . . . . . . . . . . . . . . Parts Built . | . . . . . . . . . . . . . . . . . . Matter . | . . . . . . . . . . . . . . . . . . Time . | . . . . . . . . . . . . . . . . . . Total Part Build Rating . | . . . . . . . . . . . . . . . . . . Parts Repaired 2 | . 1 . 1 . . . . . . . . . . . . . . Time 39 | . 13 . 26 . . . . . . . . . . . . . . Parts Recycled . | . . . . . . . . . . . . . . . . . . Recycled Matter 990 | . 447 . . . . . . . 543 . . . . . . . . Retrieved Matter 447 | . 447 . . . . . . . . . . . . . . . . Retrieved Components . | . . . . . . . . . . . . . . . . . . Parts Scanalyzed . | . . . . . . . . . . . . . . . . . . Part Schematics Acquired . | . . . . . . . . . . . . . . . . . . Parts Damaged . | . . . . . . . . . . . . . . . . . . Bothacking | -11 -10 -10 -9 -9 -9 -8 -8 -8 -8 -7 -7 -7 -7 -5 -4 -3 -3 ------------ Run | Scr Mat Min Mat Min Exi Min Mat Gar Mat Fac Sto Gar Rec Fac Fac Res Tes Used RIF Installer 2 | . . . . . . . . 1 . . . 1 . . . . . Robot Detection 1 | . . . . . . . . . . . . 1 . . . . . Robots Hacked 28 | . . . . . . . . . . . 2 12 . 9 3 2 . Non-combat 5 | . . . . . . . . . . . 1 . . 2 2 . . Combat 23 | . . . . . . . . . . . 1 12 . 7 1 2 . Robot Hacks Applied 33 | . . . . . . . . . . . 2 13 . 12 4 2 . parse_system 3 | . . . . . . . . . . . 1 1 . . . 1 . no_distress 3 | . . . . . . . . . . . 1 . . 2 . . . ignore_parts 4 | . . . . . . . . . . . . . . 1 3 . . scatter_targeting 1 | . . . . . . . . . . . . . . 1 . . . amplify_resonance 1 | . . . . . . . . . . . . 1 . . . . . disable_weapons 3 | . . . . . . . . . . . . 1 . 2 . . . go_dormant 2 | . . . . . . . . . . . . 2 . . . . . streamctrl_high 7 | . . . . . . . . . . . . 2 . 4 . 1 . formatsys_high 9 | . . . . . . . . . . . . 6 . 2 1 . . Relay Couplers Released 35 | . . . . . . . . 14 . . . 17 . . 4 . . Machine Destruction 31 | . . . . . . . . 14 . . . 17 . . . . . Programmers 4 | . . . . . . . . . . . . . . . 4 . . Attached 14 | . . . . . . . . . . . . 8 . 2 3 . 1 Robots Rewired 1 | . . . . . . . . . . . . . 1 . . . . Allies Hacked 4 | . . . . . . . . . . . . . . 1 3 . . Hacks Repelled . | . . . . . . . . . . . . . . . . . . Allies | -11 -10 -10 -9 -9 -9 -8 -8 -8 -8 -7 -7 -7 -7 -5 -4 -3 -3 -------- Run | Scr Mat Min Mat Min Exi Min Mat Gar Mat Fac Sto Gar Rec Fac Fac Res Tes Total Allies 29 | . . 1 . . . . . 1 . 3 1 8 1 10 3 1 . Largest Group 6 | . . 1 1 . . . . 1 1 3 3 5 6 6 3 2 . Highest-Rated Group 154 | . . 31 31 . . . . 81 81 58 74 122 154 154 115 113 . Highest-Rated Ally 81 | . . 31 31 . . . . 81 81 26 32 32 32 54 49 64 . Total Orders 23 | . . . . . . . . 2 . . . 10 11 . . . . STAY 2 | . . . . . . . . . . . . 2 . . . . . GOTO 6 | . . . . . . . . 1 . . . 2 3 . . . . FOLLOW 8 | . . . . . . . . 1 . . . 4 3 . . . . AID 7 | . . . . . . . . . . . . 2 5 . . . . Ally Attacks 226 | . . 11 1 . . . . 10 4 . 9 41 37 80 28 5 . Total Damage 4735 | . . 144 20 . . . . 424 272 . 143 781 452 1645 632 222 . Kills 56 | . . 6 1 . . . . 6 3 . 1 6 13 18 2 . . Allies Corrupted 1 | . . . . . . . . . . . . . . 1 . . . Allies Melted . | . . . . . . . . . . . . . . . . . . Field Lobotomies 3 | . . . . . . . . 1 . . . . . 2 . . . Intel | -11 -10 -10 -9 -9 -9 -8 -8 -8 -8 -7 -7 -7 -7 -5 -4 -3 -3 ------- Run | Scr Mat Min Mat Min Exi Min Mat Gar Mat Fac Sto Gar Rec Fac Fac Res Tes Robot Analysis Total . | . . . . . . . . . . . . . . . . . . Derelict Logs Recovered 1 | . . 1 . . . . . . . . . . . . . . . Drone Launches . | . . . . . . . . . . . . . . . . . . Drone Recoveries . | . . . . . . . . . . . . . . . . . . Exploration | -11 -10 -10 -9 -9 -9 -8 -8 -8 -8 -7 -7 -7 -7 -5 -4 -3 -3 ------------- Run | Scr Mat Min Mat Min Exi Min Mat Gar Mat Fac Sto Gar Rec Fac Fac Res Tes Turns Passed 9648 | 48 305 224 426 122 690 234 131 3121 963 356 209 926 362 832 311 152 236 Spaces Moved 6445 | 36 310 266 245 101 408 106 49 1651 389 155 268 1008 180 479 340 198 256 Core 12 | 11 . . 1 . . . . . . . . . . . . . . Treads 1294 | . . . . . . . . 791 389 114 . . . . . . . Legs 2377 | 25 53 . 162 101 408 106 49 859 . . . 65 180 369 . . . Wheels . | . . . . . . . . . . . . . . . . . . Hover 2762 | . 257 266 82 . . . . 1 . 41 268 943 . 110 340 198 256 Flight . | . . . . . . . . . . . . . . . . . . Fastest Speed 45 | 50 56 56 50 120 120 210 210 150 160 45 45 45 150 45 48 58 58 Average Speed 114 | 98 68 56 100 120 164 210 210 172 160 146 45 54 150 118 49 58 62 Slowest Speed 270 | 120 120 56 120 120 210 210 210 270 160 220 45 210 150 240 58 58 70 Overloaded Moves . | . . . . . . . . . . . . . . . . . . Propulsion Burnouts . | . . . . . . . . . . . . . . . . . . Robots Hopped 2 | . . . . . . . . . . . . . . 2 . . . Cave-ins Triggered . | . . . . . . . . . . . . . . . . . . Exploration Rate (%) 34 | 3 42 46 24 35 69 23 8 84 33 4 26 94 52 15 10 8 36 Regions Visited 17 Branch Regions 7 Pre-discovered Areas 1 | . . 1 . . . . . . . . . . . . . . . Known Exits Taken 4 | . 1 . . . . 1 1 . . . 1 . . . . . . Unknown Exits Taken 11 | 1 . 1 1 1 1 . . . 1 1 . . 1 1 1 1 . Scrap Searched 2 | . . 2 . . . . . . . . . . . . . . . Spaces Dug 75 | . . . . . . . 5 22 . . 11 37 . . . . . Terrain Destroyed 576 | . 63 74 55 . . 5 68 124 102 28 13 37 . 5 1 1 . Melee . | . . . . . . . . . . . . . . . . . . Projectile 46 | . . . . . . 5 12 24 . . 2 . . 1 1 1 . AOE 530 | . 63 74 55 . . . 56 100 102 28 11 37 . 4 . . . Actions | -11 -10 -10 -9 -9 -9 -8 -8 -8 -8 -7 -7 -7 -7 -5 -4 -3 -3 --------- Run | Scr Mat Min Mat Min Exi Min Mat Gar Mat Fac Sto Gar Rec Fac Fac Res Tes Total 8106 | 48 378 329 363 102 432 118 69 1856 612 246 332 1319 270 637 447 225 323 Wait 679 | . 19 33 39 . . 13 4 71 142 32 35 97 77 22 33 13 49 Move 6420 | 35 309 265 244 100 407 105 48 1647 388 154 267 1006 179 474 339 197 256 Hop 2 | . . . . . . . . . . . . . . 2 . . . Pick Up 200 | 7 14 9 18 1 12 . 2 29 11 10 5 26 . 31 19 2 4 Fast Attach . | . . . . . . . . . . . . . . . . . . Attach 79 | 6 4 . 8 1 3 . 3 7 1 7 . 5 . 22 7 2 3 Detach 4 | . . . . . 1 . 2 . . . . . . . 1 . . Swap 83 | . 8 2 7 . 1 . . 15 6 9 5 12 . 10 8 . . Drop 141 | . 9 8 12 . 8 . . 25 10 13 5 23 . 15 13 . . Fire 361 | . 15 8 35 . . . 10 47 54 21 15 58 1 61 26 10 . Melee 5 | . . . . . . . . . . . . . . . . . 5 Ram 7 | . . . . . . . . . . . . . . . . 1 6 Kick . | . . . . . . . . . . . . . . . . . . Crush . | . . . . . . . . . . . . . . . . . . Escape Stasis 106 | . . . . . . . . 15 . . . 91 . . . . . Rewire 15 | . . . . . . . . . . . . 1 13 . 1 . . Trap 4 | . . 4 . . . . . . . . . . . . . . . Miscellaneous . | . . . . . . . . . . . . . . . . . . Route ------- -11/Scrapyard -10/Materials -10/Mines -9/Materials (discovered 2 exits: Mat / [*Min]) -9/Mines -9/Exiles -8/Mines -8/Materials -8/Garrison (discovered 3 exits: *Mat x3) -8/Materials -7/Factory -7/Storage -7/Garrison (discovered 3 exits: *Rec x3) -7/Recycling -5/Factory -4/Factory -3/Research -3/Testing History --------- Turn | Location | Event 2 | -11/Scrapyard | Met Revision 17 14 | -11/Scrapyard | Discovered new exit (range 14) 49 | -11/Scrapyard | Entered Materials 122 | -10/Materials | Identified exit to Mines 170 | -10/Materials | Repaired Hover Unit 354 | -10/Materials | Entered Mines 360 | -10/Mines | Met a Derelict bent on vengeance 382 | -10/Mines | Found a hidden stash of uninstalled traps 389 | -10/Mines | Met a Derelict testing a Signal Generator 393 | -10/Mines | Learned location of 1 exit from Materials 561 | -10/Mines | Discovered new exit (range 5) 562 | -10/Mines | Learned location of Storage (-7) 578 | -10/Mines | Entered Materials 578 | -9/Materials | Accompanied by 1 ally 578 | -9/Materials | Evolved 2 slots: Propulsion x1, Weapon x1 579 | -9/Materials | Identified exit to Materials 759 | -9/Materials | Repaired Aluminum Leg 759 | -9/Materials | Discovered new exit (range 10) 813 | -9/Materials | Lost 5 parts (1p2n2w) 1004 | -9/Materials | Entered Mines 1048 | -9/Mines | Received a Rocket Launcher from a helpful Derelict 1067 | -9/Mines | Assembled infested the area 1122 | -9/Mines | Discovered new exit (range 5) 1126 | -9/Mines | Entered Exiles 1154 | -9/Exiles | Met 8R-AWN 1176 | -9/Exiles | Met EX-HEX 1219 | -9/Exiles | Met EX-BIN 1233 | -9/Exiles | Aligned with FarCom system 1234 | -9/Exiles | Given EX-Vault access code 1262 | -9/Exiles | Opened EX-Vault 1273 | -9/Exiles | Found AWS/Autocannon 1277 | -9/Exiles | Found Superbattery 1283 | -9/Exiles | Found Field Lobotomy Kit 1333 | -9/Exiles | Warned to stay clear of 0b10 Research branches 1352 | -9/Exiles | Build established: Scavenger-Gunner 1394 | -9/Exiles | Met EX-DEC 1737 | -9/Exiles | Build established: Scavenger-Tank 1799 | -9/Exiles | Discovered new exit (range 10) 1816 | -9/Exiles | Stole three prototypes: AWS/Autocannon, Superbattery, Field Lobotomy Kit 1816 | -9/Exiles | Entered Mines 2037 | -8/Mines | Discovered exit to Materials (range 8) 2050 | -8/Mines | Entered Materials 2050 | -8/Materials | Evolved 2 slots: Utility x1, Weapon x1 2084 | -8/Materials | Garrison activated, responded to threat 2113 | -8/Materials | Build established: Scavenger-Skirmisher 2179 | -8/Materials | Identified exit to Garrison 2181 | -8/Materials | Entered Garrison 2330 | -8/Garrison | Triggered checkpoint 2395 | -8/Garrison | Garrison Relay disabled 2606 | -8/Garrison | Triggered checkpoint 2863 | -8/Garrison | Triggered checkpoint 2876 | -8/Garrison | Triggered checkpoint 2908 | -8/Garrison | Destroyed 9 combat bots 2924 | -8/Garrison | Triggered checkpoint 3148 | -8/Garrison | Spotted B-75 Beast 3148 | -8/Garrison | Spotted B-75 Beast 3152 | -8/Garrison | Assimilated B-75 Beast with FLK Orb 3555 | -8/Garrison | Discovered new exit (range 14) 3612 | -8/Garrison | Triggered checkpoint 3648 | -8/Garrison | Garrison Relay disabled 3908 | -8/Garrison | Triggered checkpoint 3947 | -8/Garrison | Build established: Scavenger-Mutant 4132 | -8/Garrison | Triggered checkpoint 4148 | -8/Garrison | Discovered new exit (range 15) 4305 | -8/Garrison | Discovered new exit (range 10) 4352 | -8/Garrison | Triggered checkpoint 4429 | -8/Garrison | Build established: Scavenger-Skirmisher 4826 | -8/Garrison | Triggered checkpoint 4894 | -8/Garrison | Garrison Relay disabled 5026 | -8/Garrison | Attempted to access garrison exit controls, blocked by remote lockdown 5186 | -8/Garrison | Garrison Relay disabled 5270 | -8/Garrison | Installed Relay Interface Framework 5302 | -8/Garrison | Entered Materials 5302 | -8/Materials | Accompanied by 1 ally 5661 | -8/Materials | Build established: Skirmisher 6102 | -8/Materials | First assault squad dispatched 6202 | -8/Materials | Discovered new exit (range 15) 6265 | -8/Materials | Entered Factory 6265 | -7/Factory | Evolved 2 slots: Utility x2 6267 | -7/Factory | FarCom data flow suspended 6466 | -7/Factory | Discovered new exit (range 11) 6479 | -7/Factory | Garrison activated, responded to threat 6621 | -7/Factory | Entered Storage 6621 | -7/Storage | Accompanied by 3 allies 6625 | -7/Storage | Found Prototype Launcher 6626 | -7/Storage | Identified Rocket Array 6661 | -7/Storage | Found Prototype Launcher 6799 | -7/Storage | Identified exit to Garrison 6830 | -7/Storage | Entered Garrison 6830 | -7/Garrison | Accompanied by 3 allies 6848 | -7/Garrison | Triggered checkpoint 6881 | -7/Garrison | Garrison Relay disabled 6926 | -7/Garrison | Build established: Mutant 6944 | -7/Garrison | Triggered checkpoint 6944 | -7/Garrison | Triggered checkpoint 6960 | -7/Garrison | Triggered checkpoint 6988 | -7/Garrison | Identified Scatter Rocket Array 7054 | -7/Garrison | Triggered checkpoint 7082 | -7/Garrison | Garrison Relay disabled 7130 | -7/Garrison | Discovered new exit (range 10) 7138 | -7/Garrison | Expanded RIF knowledge: Robot Detection 7198 | -7/Garrison | Triggered checkpoint 7283 | -7/Garrison | Garrison Relay disabled 7284 | -7/Garrison | Triggered checkpoint 7346 | -7/Garrison | Discovered new exit (range 9) 7394 | -7/Garrison | Triggered checkpoint 7396 | -7/Garrison | Build established: Bothacker-Mutant 7435 | -7/Garrison | Discovered new exit (range 15) 7475 | -7/Garrison | Garrison Relay disabled 7756 | -7/Garrison | Entered Recycling 7756 | -7/Recycling | Accompanied by 5 allies 7769 | -7/Recycling | Spotter reported a threat 7778 | -7/Recycling | Spotter reported a threat 7791 | -7/Recycling | Spotter reported a threat 7811 | -7/Recycling | Spotter reported a threat 7820 | -7/Recycling | Spotter reported a threat 7826 | -7/Recycling | Spotter reported a threat 7836 | -7/Recycling | Spotter reported a threat 7844 | -7/Recycling | Spotter reported a threat 7862 | -7/Recycling | Spotter reported a threat 7909 | -7/Recycling | Spotter reported a threat 7959 | -7/Recycling | Spotter reported a threat 7969 | -7/Recycling | Spotter reported a threat 7971 | -7/Recycling | Spotter reported a threat 8010 | -7/Recycling | Spotter reported a threat 8011 | -7/Recycling | Spotter reported a threat 8011 | -7/Recycling | Spotter reported a threat 8014 | -7/Recycling | Spotter reported a threat 8036 | -7/Recycling | Discovered new exit (range 5) 8067 | -7/Recycling | Spotter reported a threat 8118 | -7/Recycling | Entered Factory 8118 | -5/Factory | Accompanied by 6 allies 8118 | -5/Factory | Evolved 4 slots: Power x1, Utility x3 8327 | -5/Factory | Garrison activated, responded to threat 8374 | -5/Factory | Lost 3 parts (2u1w) 8406 | -5/Factory | Hacking Suite fried by hacking feedback 8418 | -5/Factory | First assault squad dispatched 8451 | -5/Factory | Garrison activated, responded to threat 8570 | -5/Factory | Lost 3 parts (2n1w) 8666 | -5/Factory | System corruption reached 10% 8673 | -5/Factory | Assimilated P-70 Sage with FLK Orb 8676 | -5/Factory | Assimilated P-70 Sage with FLK Orb 8704 | -5/Factory | Lost 5 parts (1p2u2w) 8766 | -5/Factory | Sage 6a assimilated hostile G-50 Soldier 8918 | -5/Factory | Discovered new exit (range 16) 8950 | -5/Factory | Entered another Factory area 8950 | -4/Factory | Accompanied by 2 allies 8950 | -4/Factory | Evolved 2 slots: Propulsion x1, Utility x1 9020 | -4/Factory | Garrison activated, responded to threat 9124 | -4/Factory | Garrison activated, responded to threat 9146 | -4/Factory | Sage 6b assimilated hostile G-67 Veteran 9188 | -4/Factory | Sage 6b assimilated hostile W-44 Eye 9255 | -4/Factory | Discovered new exit (range 5) 9261 | -4/Factory | Entered Research 9261 | -3/Research | Accompanied by 1 ally 9261 | -3/Research | Evolved 2 slots: Power x1, Utility x1 9320 | -3/Research | Garrison activated, responded to threat 9405 | -3/Research | Discovered new exit (range 15) 9413 | -3/Research | Entered Testing 9428 | -3/Testing | Lost 11 parts (5u6w) 9600 | -3/Testing | Core integrity fell below 50% 9616 | -3/Testing | Core integrity fell below 20% 9641 | -3/Testing | System corruption reached 10% 9649 | -3/Testing | Destroyed by P-80 Master with Gamma Rifle Last Messages --------------- 09598_ S-43 Plague destroyed. 09602_ U-05 Engineer builds a Door. 09604_ P-80 Master resets S-43 Plague, system corruption cleaned. 09605_ Mic. Fission Core destroyed. 09605_ S-43 Plague destroyed. 09605_ Superbattery destroyed. 09606_ Relay Coupler [Duelist] destroyed. 09608_ P-80 Master resets P-80 Master, system corruption cleaned. 09609_ Scanalyzer disabled. 09612_ S-43 Plague destroyed. 09612_ Hvy. Pick destroyed. 09616_ Acquired Xenon Bombardment Thruster. 09624_ Imp. Gyrokinetic Inverter destroyed. 09641_ System corrupted: Imp. Gyrokinetic Inverter rejected. 09644_ Terminal disabled. 09646_ R-10 Processor collects Imp. Gyrokinetic Inverter. 09647_ Slammed into P-80 Master. 09648_ Slammed into R-10 Processor. 09648_ Destabilizing: Short circuit. 09648_ Broken Imp. Gyrokinetic Inverter permanently disabled. Map ----- +----------------------------------------------------+ | | | | | ?????????????????????????????????????????????????? | | ##########???????????????????????????????????????? | | #![%![ #???????????????????????????????????????? | | # ==*%"" #########???????????????????????????????? | | # =%= " # #???????????????????????????????? | | # [[*="" # #########???????????????????????? | | # [ # #???????????????????????? | | # "" + #???????????????????????? | | # ] ! "" # #####???????????????????? | | # "" # ##### ## #???????????????????? | | # ! # #??## ## #???????????????????? | | ###############/##### #???????????????????? | | ???# ## [! # ####???????????????????? | | #??# ## [! / #??????????????????????? | | #??# ?# ] # #??????????????????????? | | #??# ??######### #??????????????????????? | | #### ##########??### ###??????????????????????? | | # # #????# #????????????????????????? | | "" # # ###### ####?????????????????????? | | "" # + k + #?????????????????????? | | "" + #k ######### #?????????????????????? | | # # ######### #?????????????????????? | | = # # ## pp #?????????????????????? | | = # # ## @p#?????????????????????? | | # # ##""""### #?????????????????????? | | +### # #???????#R ????????????????????? | | ??? ##"" ""###???????# #???????????????????? | | ?? ##""S""#?????????# #???????????????????? | | ? ##"""" #?????????# #???????????????????? | | ? ########?????????# #???????????????????? | | ########????????????????# #???????????????????? | | ????????????????????????# #???????????????????? | | ?????????????????????????? #???????????????????? | | ?????????????????????????? #???????????????????? | | ?????????????????????????? #???????????????????? | | ?????????????????????????? #???????????????????? | | ?????????????????????????? #???????????????????? | | ?????????????????????????? #???????????????????? | | ?????????????????????????? ????????????????????? | | ?????????????????????????????????????????????????? | | ?????????????????????????????????????????????????? | | ?????????????????????????????????????????????????? | | ?????????????????????????????????????????????????? | | ?????????????????????????????????????????????????? | | ?????????????????????????????????????????????????? | | ?????????????????????????????????????????????????? | | ?????????????????????????????????????????????????? | | ?????????????????????????????????????????????????? | +----------------------------------------------------+ Best States ------------- Heat Dissipation 84 Energy Generation 31 Energy Capacity 2360 Matter Stores 300 Matter Capacity 300 Sight Range 16 Terrain Scan Density 10 Additional Mass Support 9 Armor Coverage 600 Propulsion Shielding 66 Weapon Shielding 66 Evasion (%) 56 Targeting Accuracy 10 Armor Integrity Analysis 33 Recoil Reduction 6 Matter Filtering 30 Particle Charging 20 Kinecelleration 40 Offensive Hacking 10 Item Schematics ----------------- None Robot Schematics ------------------ None Fabricated ------------ Nothing Alien Tech Used ----------------- None Achievements -------------- Assimilation Complete Error 47 Quantum Hacking Challenges ------------ None Game ------ Seed ShockVortexManipulator Manual? 0 Play Time 02:27:34 Cumulative 46.5 hours Start 2020.02.06 @ 19:05:23 End 2020.02.07 @ 13:40:30 Sessions 11 Manual Loads 0 Difficulty Rogue Special Mode None Game No. 31 Rogue 31 Adventurer 0 Explorer 0 Win Type - Total 1 Types 1/0/0/0/0/0/0 Lore% 50 Gallery% 51 Achievement% 43 Wizard Run 0 Options --------- ASCII 0 Keyboard 0 Movement Numpad Keybinds 0 Fullscreen 1 Font 18/SmallcapsGlow Map View 76x50 Tactical HUD 1 Map Filters NONE Filters NONE Steam 1 RUN: 47138c7d-ce62-458c-a2bd-ad923a44d3ed